fUST/lending_fUST_20250623
["ID","MTS","AMOUNT","RATE_DAILY","PERIOD"]
[367149480,1750672240658,-460.0,0.00021917,2]
[367149482,1750672240668,-460.0,0.00021917,2]
[367149484,1750672240678,-460.0,0.00021917,2]
[367149486,1750672240688,-460.0,0.00021917,2]
[367149488,1750672240698,-199.96221133,0.00021917,2]
[367149490,1750672240707,-460.0,0.00021917,2]
[367149492,1750672240717,-460.0,0.00021917,2]
[367149494,1750672240726,-460.0,0.00021917,2]
[367149496,1750672240736,-795.39,0.00021917,2]
[367149498,1750672240745,-460.0,0.00021917,2]
[367149500,1750672240754,-460.0,0.00021917,2]
[367149502,1750672240763,-460.0,0.00021917,2]
[367149504,1750672240773,-460.0,0.00021917,2]
[367149505,1750672240782,-460.0,0.00021917,2]
[367149506,1750672240791,-260.87440124,0.00021917,2]
[367149507,1750672240801,-460.0,0.00021917,2]
[367149508,1750672240810,-1451.71,0.00021917,2]
[367149509,1750672240819,-540.02,0.00021917,2]
[367149510,1750672240829,-460.0,0.00021917,2]
[367149512,1750672240839,-460.0,0.00021917,2]
[367149513,1750672240848,-661.49,0.00021917,2]
[367149514,1750672240857,-1645.52,0.00021917,2]
[367149515,1750672240867,-460.0,0.00021917,2]
[367149516,1750672240879,-460.0,0.00021917,2]
[367149517,1750672240889,-460.0,0.00021917,2]
[367149518,1750672240899,-460.0,0.00021917,2]
[367149519,1750672240908,-460.0,0.00021917,2]
[367149520,1750672240918,-460.0,0.00021917,2]
[367149521,1750672240927,-729.04,0.00021917,2]
[367149522,1750672240936,-534.73,0.00021917,2]
[367149523,1750672240945,-1018.7,0.00021917,2]
[367149524,1750672240954,-460.0,0.00021917,2]
[367149525,1750672240963,-460.0,0.00021917,2]
[367149526,1750672240972,-460.0,0.00021917,2]
[367149527,1750672240981,-460.0,0.00021917,2]
[367149528,1750672240990,-627.63,0.00021917,2]
[367149529,1750672241000,-460.0,0.00021917,2]
[367149530,1750672241010,-460.0,0.00021917,2]
[367149531,1750672241019,-460.0,0.00021917,2]
[367149532,1750672241028,-460.0,0.00021917,2]
[367149533,1750672241038,-460.0,0.00021917,2]
[367149534,1750672241047,-460.0,0.00021917,2]
[367149535,1750672241056,-460.0,0.00021917,2]
[367149536,1750672241066,-945.71,0.00021917,2]
[367149537,1750672241075,-591.59,0.00021917,2]
[367149538,1750672241084,-801.56,0.00021917,2]
[367149539,1750672241094,-434.72225306,0.00021917,2]
[367149540,1750672241103,-460.0,0.00021917,2]
[367149541,1750672241112,-460.0,0.00021917,2]
[367149542,1750672241121,-597.1990141,0.00021917,2]
[367149543,1750672241131,-460.0,0.00021917,2]
[367149544,1750672241140,-460.0,0.00021917,2]
[367149545,1750672241149,-542.31,0.00021917,2]
[367149546,1750672241158,-460.0,0.00021917,2]
[367149547,1750672241167,-852.35,0.00021917,2]
[367149548,1750672241177,-407.48782632,0.00021917,2]
[367149549,1750672241186,-460.0,0.00021917,2]
[367149550,1750672241195,-460.0,0.00021917,2]
[367149551,1750672241204,-460.0,0.00021917,2]
[367149552,1750672241213,-571.59,0.00021917,2]
[367149553,1750672241223,-460.0,0.00021917,2]
[367149554,1750672241232,-460.0,0.00021917,2]
[367149555,1750672241241,-460.0,0.00021917,2]
[367149556,1750672241250,-460.0,0.00021917,2]
[367149557,1750672241259,-460.0,0.00021917,2]
[367149558,1750672241268,-1506.16,0.00021917,2]
[367149559,1750672241277,-460.0,0.00021917,2]
[367149560,1750672241287,-460.0,0.00021917,2]
[367149561,1750672241296,-550.19,0.00021917,2]
[367149562,1750672241305,-1692.51,0.00021917,2]
[367149563,1750672241315,-460.0,0.00021917,2]
[367149564,1750672241324,-4818.45,0.00021917,2]
[367149565,1750672241334,-460.0,0.00021917,2]
[367149566,1750672241343,-460.0,0.00021917,2]
[367149567,1750672241353,-596.58,0.00021917,2]
[367149568,1750672241363,-969.7,0.00021917,2]
[367149569,1750672241372,-460.0,0.00021917,2]
[367149570,1750672241381,-500.0,0.00021917,2]
[367149571,1750672241391,-460.0,0.00021917,2]
[367149572,1750672241400,-460.0,0.00021917,2]
[367149573,1750672241409,-460.0,0.00021917,2]
[367149574,1750672241419,-635.63,0.00021917,2]
[367149575,1750672241428,-765.69,0.00021917,2]
[367149576,1750672241437,-548.44906597,0.00021917,2]
[367149577,1750672241447,-471.45,0.00021917,2]
[367149578,1750672241456,-460.0,0.00021917,2]
[367149579,1750672241465,-460.0,0.00021917,2]
[367149580,1750672241474,-5451.25,0.00021917,2]
[367149581,1750672241485,-460.0,0.00021917,2]
[367149582,1750672241494,-896.28,0.00021917,2]
[367149583,1750672241503,-460.0,0.00021917,2]
[367149584,1750672241512,-460.0,0.00021917,2]
[367149585,1750672241522,-680.63,0.00021917,2]
[367149586,1750672241531,-460.0,0.00021917,2]
[367149587,1750672241540,-460.0,0.00021917,2]
[367149588,1750672241549,-460.0,0.00021917,2]
[367149589,1750672241560,-460.0,0.00021917,2]
[367149590,1750672241569,-460.0,0.00021917,2]
[367149591,1750672241579,-115.74220602,0.00021917,2]
[367149592,1750672241807,-947.47779398,0.00021917,2]
[367149593,1750672241818,-460.0,0.00021917,2]
[367149594,1750672241828,-1860.02,0.00021917,2]
[367149595,1750672241838,-460.0,0.00021917,2]
[367149596,1750672241848,-460.0,0.00021917,2]
[367149597,1750672241857,-366.2124688,0.00021917,2]
[367149598,1750672241866,-460.0,0.00021917,2]
[367149599,1750672241876,-460.0,0.00021917,2]
[367149600,1750672241885,-1003.45,0.00021917,2]
[367149601,1750672241895,-533.17,0.00021917,2]
[367149602,1750672241905,-460.0,0.00021917,2]
[367149603,1750672241914,-1387.49,0.00021917,2]
[367149604,1750672241924,-486.6,0.00021917,2]
[367149605,1750672241934,-460.0,0.00021917,2]
[367149606,1750672241943,-460.0,0.00021917,2]
[367149607,1750672241952,-461.45320745,0.00021917,2]
[367149608,1750672241962,-460.0,0.00021917,2]
[367149609,1750672241971,-460.0,0.00021917,2]
[367149610,1750672241980,-460.0,0.00021917,2]
[367149611,1750672241990,-6902.51,0.00021917,2]
[367149612,1750672242000,-460.0,0.00021917,2]
[367149613,1750672242009,-460.0,0.00021917,2]
[367149614,1750672242018,-200.0,0.00021917,10]
[367149615,1750672242028,-460.0,0.00021917,2]
[367149616,1750672242037,-460.0,0.00021917,2]
[367149617,1750672242046,-996.04,0.00021917,2]
[367149618,1750672242055,-525.16,0.00021917,2]
[367149619,1750672242065,-552.30136842,0.00021917,2]
[367149620,1750672242075,-460.0,0.00021917,2]
[367149621,1750672242084,-740.62,0.00021917,2]
[367149622,1750672242093,-460.0,0.00021917,2]
[367149623,1750672242103,-460.0,0.00021917,2]
[367149624,1750672242112,-460.0,0.00021917,2]
[367149625,1750672242121,-460.0,0.00021917,2]
[367149626,1750672242130,-460.0,0.00021917,2]
[367149627,1750672242139,-460.0,0.00021917,2]
[367149628,1750672242148,-1760.33,0.00021917,2]
[367149629,1750672242158,-460.0,0.00021917,2]
[367149630,1750672242168,-460.0,0.00021917,2]
[367149631,1750672242179,-661.42,0.00021917,2]
[367149632,1750672242188,-460.0,0.00021917,2]
[367149633,1750672242199,-932.75,0.00021917,2]
[367149634,1750672242211,-460.0,0.00021917,2]
[367149635,1750672242220,-526.38159026,0.00021917,2]
[367149636,1750672242229,-460.0,0.00021917,2]
[367149637,1750672242239,-460.0,0.00021917,2]
[367149638,1750672242249,-514.5158034,0.00021917,2]
[367149639,1750672242258,-460.0,0.00021917,2]
[367149640,1750672242267,-484.1,0.00021917,2]
[367149641,1750672242276,-9954.69836467,0.00021917,2]
[367149667,1750672243584,-2463.85029112,0.00021917,2]
[367149676,1750672247234,-1683.0,0.00021907,10]
[367149677,1750672247243,-2047.13425796,0.00021917,2]
[367149678,1750672247333,-0.30974342,0.00021917,2]
[367149679,1750672277643,2400.0,0.00024,30]
[367149688,1750672346270,150.0,0.0002175,30]
[367149689,1750672346716,150.0,0.00023728,30]
[367149696,1750672358569,162.327168,0.00013699,2]
[367149700,1750672430266,150.0,0.00021831,30]
[367149701,1750672430662,150.0,0.00023816,30]
[367149704,1750672509395,150.0,0.00021637,30]
[367149705,1750672509820,150.0,0.00023604,30]
[367149706,1750672587524,150.0,0.00021664,30]
[367149707,1750672587930,150.0,0.00023634,30]
[367149708,1750672663613,150.0,0.00021665,30]
[367149709,1750672664032,150.0,0.00023634,30]
[367149710,1750672741013,150.0,0.00021664,30]
[367149711,1750672741498,150.0,0.00023633,30]
[367149713,1750672821148,150.0,0.00021809,30]
[367149714,1750672821575,150.0,0.00023792,30]
[367149716,1750672898874,150.0,0.00021738,30]
[367149717,1750672899314,150.0,0.00023715,30]
[367149718,1750672907353,1123.93,0.00024,30]
[367149719,1750672920700,842.94,0.00024,30]
[367149720,1750672931055,842.94,0.00024,30]
[367149721,1750672940906,842.95,0.00024,30]
[367149722,1750672955931,841.0,0.00024,30]
[367149723,1750672978271,150.0,0.00021806,30]
[367149724,1750672978743,150.0,0.00023788,30]
[367149725,1750673054608,150.0,0.00021639,30]
[367149726,1750673055012,150.0,0.00023606,30]
[367149727,1750673130579,150.0,0.00021611,30]
[367149728,1750673131425,150.0,0.00023576,30]
[367149729,1750673199366,-192.90798617,0.00020312,2]
[367149730,1750673205633,150.0,0.00021527,30]
[367149731,1750673206029,150.0,0.00023485,30]
[367149732,1750673237137,-4807.09201383,0.00020312,2]
[367149733,1750673237158,-852.8251448,0.00020656,2]
[367149734,1750673280312,150.0,0.00021572,30]
[367149735,1750673288782,186.39332,0.00019942,2]
[367149736,1750673352487,150.0,0.00021499,30]
[367149737,1750673423465,162.327168,0.00013699,2]
[367149738,1750673427313,150.0,0.00021434,30]
[367149739,1750673427713,150.0,0.00023383,30]
[367149757,1750673432491,-306.9860618,0.00020449,2]
[367149759,1750673432501,-3410.0,0.00020449,2]
[367149761,1750673432511,-147.1748552,0.00020656,2]
[367149763,1750673432521,-300.0,0.00020723,2]
[367149765,1750673432530,-1200.0,0.00020723,2]
[367149766,1750673432540,-300.0,0.00020724,2]
[367149767,1750673432550,-4135.25822291,0.00020725,2]
[367149769,1750673432563,-481.84569023,0.00020725,2]
[367149770,1750673432574,-18779.26369642,0.00020725,2]
[367149772,1750673432594,-457.06942327,0.00020725,2]
[367149774,1750673432606,-605.45,0.00020725,2]
[367149794,1750673432829,-441.11296717,0.00020725,2]
[367149798,1750673432851,-328.44568519,0.00020914,2]
[367149800,1750673432864,-2159.59038949,0.00020914,2]
[367149832,1750673438450,-3717.96793382,0.00020914,2]
[367149833,1750673438460,-161.9962411,0.00021304,2]
[367149834,1750673438470,-500.0,0.00021358,2]
[367149835,1750673438480,-500.0,0.00021358,2]
[367149836,1750673438492,-500.0,0.00021358,2]
[367149837,1750673438503,-500.0,0.00021358,2]
[367149838,1750673438513,-500.0,0.00021358,2]
[367149839,1750673438522,-507.27383158,0.00021358,2]
[367149840,1750673438532,-500.0,0.00021358,2]
[367149841,1750673438543,-1688.0,0.00021359,2]
[367149842,1750673438554,-207.4,0.00021359,2]
[367149843,1750673438563,-1882.38611826,0.00021414,2]
[367149844,1750673438575,-437.24886619,0.00021518,2]
[367149845,1750673438584,-183.064,0.00021691,2]
[367149846,1750673438595,-306.0,0.000217,2]
[367149848,1750673438604,-306.0,0.000217,2]
[367149850,1750673438614,-437.24886619,0.00021886,2]
[367149852,1750673438623,-151.0,0.00021904,2]
[367149853,1750673438633,-500.0,0.00021904,2]
[367149854,1750673438642,-500.0,0.00021904,2]
[367149855,1750673438651,-500.0,0.00021904,2]
[367149856,1750673438662,-500.0,0.00021904,2]
[367149857,1750673438671,-500.0,0.00021904,2]
[367149858,1750673438681,-500.0,0.00021904,2]
[367149859,1750673438692,-500.0,0.00021904,2]
[367149860,1750673438702,-500.0,0.00021904,2]
[367149861,1750673438712,-500.0,0.00021904,2]
[367149862,1750673438724,-185.41464388,0.00021904,2]
[367149863,1750673438735,-500.0,0.00021904,2]
[367149864,1750673438744,-500.0,0.00021904,2]
[367149865,1750673438754,-514.42399439,0.00021904,2]
[367149866,1750673438763,-500.0,0.00021904,2]
[367149867,1750673438773,-500.0,0.00021904,2]
[367149868,1750673438784,-500.0,0.00021904,2]
[367149869,1750673438793,-500.0,0.00021904,2]
[367149870,1750673438804,-500.0,0.00021904,2]
[367149871,1750673438814,-500.0,0.00021904,2]
[367149872,1750673438824,-500.0,0.00021904,2]
[367149873,1750673438833,-1000.0,0.00021905,2]
[367149874,1750673438844,-500.0,0.00021916,2]
[367149875,1750673438854,-200.0,0.00021916,2]
[367149876,1750673438864,-500.0,0.00021916,2]
[367149877,1750673438873,-169.69,0.00021916,2]
[367149878,1750673438883,-501.01,0.00021916,7]
[367149879,1750673438892,-1005.21239634,0.00021916,2]
[367149880,1750673438902,-190.4085764,0.00021917,2]
[367149881,1750673438912,-8090.86285926,0.00021917,2]
[367149882,1750673438921,-460.0,0.00021917,2]
[367149883,1750673438931,-460.0,0.00021917,2]
[367149884,1750673438942,-487.31,0.00021917,2]
[367149885,1750673438951,-460.0,0.00021917,2]
[367149886,1750673438961,-460.0,0.00021917,2]
[367149887,1750673438970,-471.66,0.00021917,2]
[367149888,1750673438980,-460.0,0.00021917,2]
[367149889,1750673438989,-460.0,0.00021917,2]
[367149890,1750673438998,-460.0,0.00021917,2]
[367149891,1750673439007,-460.0,0.00021917,2]
[367149892,1750673439017,-460.0,0.00021917,2]
[367149893,1750673439026,-460.0,0.00021917,2]
[367149894,1750673439035,-460.0,0.00021917,2]
[367149895,1750673439044,-460.0,0.00021917,2]
[367149896,1750673439053,-460.0,0.00021917,2]
[367149897,1750673439062,-182.75399511,0.00021917,2]
[367149898,1750673439072,-460.0,0.00021917,2]
[367149899,1750673439081,-1000.0,0.00021917,2]
[367149900,1750673439091,-460.0,0.00021917,2]
[367149901,1750673439104,-417.87977399,0.00021917,2]
[367149902,1750673439113,-460.0,0.00021917,2]
[367149903,1750673439123,-473.11612061,0.00021917,2]
[367149904,1750673439132,-156.02636217,0.00021917,2]
[367149905,1750673439142,-460.0,0.00021917,2]
[367149906,1750673439152,-460.0,0.00021917,2]
[367149907,1750673439161,-460.0,0.00021917,2]
[367149908,1750673439172,-174.46094549,0.00021917,2]
[367149909,1750673439182,-460.0,0.00021917,2]
[367149910,1750673439191,-460.0,0.00021917,2]
[367149911,1750673439201,-460.0,0.00021917,2]
[367149912,1750673439210,-460.0,0.00021917,2]
[367149913,1750673439220,-481.61,0.00021917,2]
[367149914,1750673439229,-552.24507458,0.00021917,2]
[367149915,1750673439239,-287.46108804,0.00021917,2]
[367149916,1750673439248,-681.15,0.00021917,2]
[367149917,1750673439257,-460.0,0.00021917,2]
[367149918,1750673439266,-460.0,0.00021917,2]
[367149919,1750673439275,-460.0,0.00021917,2]
[367149920,1750673439284,-460.0,0.00021917,2]
[367149921,1750673439295,-460.0,0.00021917,2]
[367149922,1750673439304,-460.0,0.00021917,2]
[367149923,1750673439314,-460.0,0.00021917,2]
[367149924,1750673439323,-460.0,0.00021917,2]
[367149925,1750673439333,-460.0,0.00021917,2]
[367149926,1750673439343,-460.0,0.00021917,2]
[367149927,1750673439353,-460.0,0.00021917,2]
[367149928,1750673439362,-460.0,0.00021917,2]
[367149929,1750673439371,-254.78552679,0.00021917,2]
[367149930,1750673439380,-460.0,0.00021917,2]
[367149931,1750673439389,-460.0,0.00021917,2]
[367149932,1750673439399,-460.0,0.00021917,2]
[367149933,1750673439408,-460.0,0.00021917,2]
[367149934,1750673439417,-460.0,0.00021917,2]
[367149935,1750673439426,-460.0,0.00021917,2]
[367149936,1750673439435,-460.0,0.00021917,2]
[367149937,1750673439443,-460.0,0.00021917,2]
[367149938,1750673439452,-460.0,0.00021917,2]
[367149939,1750673439463,-806.4,0.00021917,2]
[367149940,1750673439472,-460.0,0.00021917,2]
[367149941,1750673439482,-460.0,0.00021917,2]
[367149942,1750673439491,-460.0,0.00021917,2]
[367149943,1750673439501,-460.0,0.00021917,2]
[367149944,1750673439510,-460.0,0.00021917,2]
[367149945,1750673439520,-301.17698908,0.00021917,2]
[367149946,1750673439530,-460.0,0.00021917,2]
[367149947,1750673439540,-460.0,0.00021917,2]
[367149948,1750673439550,-164.9369668,0.00021917,2]
[367149949,1750673439560,-460.0,0.00021917,2]
[367149950,1750673439569,-460.0,0.00021917,2]
[367149951,1750673439579,-406.43770879,0.00021917,2]
[367149952,1750673439589,-460.0,0.00021917,2]
[367149953,1750673439599,-460.0,0.00021917,2]
[367149954,1750673439609,-460.0,0.00021917,2]
[367149955,1750673439620,-519.30897647,0.00021917,2]
[367149956,1750673439630,-460.0,0.00021917,2]
[367149957,1750673439650,-460.0,0.00021917,2]
[367149958,1750673439659,-588.05506252,0.00021917,2]
[367149959,1750673439669,-460.0,0.00021917,2]
[367149960,1750673439679,-460.0,0.00021917,2]
[367149961,1750673439688,-460.0,0.00021917,2]
[367149962,1750673439699,-460.0,0.00021917,2]
[367149963,1750673439710,-460.0,0.00021917,2]
[367149964,1750673439720,-460.0,0.00021917,2]
[367149965,1750673439729,-460.0,0.00021917,2]
[367149966,1750673439739,-460.0,0.00021917,2]
[367149967,1750673439750,-460.0,0.00021917,2]
[367149968,1750673439760,-460.0,0.00021917,2]
[367149969,1750673439769,-460.0,0.00021917,2]
[367149970,1750673439780,-460.0,0.00021917,2]
[367149971,1750673439789,-460.0,0.00021917,2]
[367149972,1750673439799,-460.0,0.00021917,2]
[367149973,1750673439809,-460.0,0.00021917,2]
[367149974,1750673439820,-460.0,0.00021917,2]
[367149975,1750673439831,-460.0,0.00021917,2]
[367149976,1750673439840,-460.0,0.00021917,2]
[367149977,1750673439850,-460.0,0.00021917,2]
[367149978,1750673439860,-460.0,0.00021917,2]
[367149979,1750673439870,-460.0,0.00021917,2]
[367149980,1750673439880,-763.91,0.00021917,2]
[367149981,1750673439889,-608.11266463,0.00021917,2]
[367149982,1750673439899,-822.03,0.00021917,2]
[367149983,1750673439909,-460.0,0.00021917,2]
[367149984,1750673439919,-460.0,0.00021917,2]
[367149985,1750673439929,-358.96505236,0.00021917,2]
[367149986,1750673439939,-460.0,0.00021917,2]
[367149987,1750673439948,-457.1969953,0.00021917,2]
[367149988,1750673439958,-460.0,0.00021917,2]
[367149989,1750673439967,-460.0,0.00021917,2]
[367149990,1750673439977,-460.0,0.00021917,2]
[367149991,1750673439986,-460.0,0.00021917,2]
[367149992,1750673439996,-460.0,0.00021917,2]
[367149993,1750673440007,-403.78421503,0.00021917,2]
[367149994,1750673440017,-460.0,0.00021917,2]
[367149995,1750673440026,-460.0,0.00021917,2]
[367149996,1750673440036,-368.0420577,0.00021917,2]
[367149997,1750673440046,-657.61,0.00021917,2]
[367149998,1750673440055,-460.0,0.00021917,2]
[367149999,1750673440064,-460.0,0.00021917,2]
[367150000,1750673440074,-460.0,0.00021917,2]
[367150001,1750673440083,-460.0,0.00021917,2]
[367150002,1750673440093,-460.0,0.00021917,2]
[367150003,1750673440106,-460.0,0.00021917,2]
[367150004,1750673440116,-460.0,0.00021917,2]
[367150005,1750673440125,-460.0,0.00021917,2]
[367150006,1750673440135,-460.0,0.00021917,2]
[367150007,1750673440145,-165.15346909,0.00021917,2]
[367150008,1750673440155,-460.0,0.00021917,2]
[367150009,1750673440165,-460.0,0.00021917,2]
[367150010,1750673440174,-460.0,0.00021917,2]
[367150011,1750673440184,-460.0,0.00021917,2]
[367150012,1750673440193,-460.0,0.00021917,2]
[367150013,1750673440203,-460.0,0.00021917,2]
[367150014,1750673440212,-460.0,0.00021917,2]
[367150015,1750673440221,-460.0,0.00021917,2]
[367150016,1750673440230,-1679.58,0.00021917,2]
[367150017,1750673440240,-460.0,0.00021917,2]
[367150018,1750673440249,-720.43,0.00021917,2]
[367150019,1750673440260,-911.93,0.00021917,2]
[367150020,1750673440269,-460.0,0.00021917,2]
[367150021,1750673440279,-460.0,0.00021917,2]
[367150022,1750673440289,-460.0,0.00021917,2]
[367150023,1750673440299,-460.0,0.00021917,2]
[367150024,1750673440309,-460.0,0.00021917,2]
[367150025,1750673440318,-1454.29,0.00021917,2]
[367150026,1750673440328,-460.0,0.00021917,2]
[367150027,1750673440338,-460.0,0.00021917,2]
[367150028,1750673440347,-1412.33,0.00021917,2]
[367150029,1750673440357,-460.0,0.00021917,2]
[367150030,1750673440366,-460.0,0.00021917,2]
[367150031,1750673440376,-460.0,0.00021917,2]
[367150032,1750673440385,-460.0,0.00021917,2]
[367150033,1750673440395,-460.0,0.00021917,2]
[367150034,1750673440406,-460.0,0.00021917,2]
[367150035,1750673440416,-460.0,0.00021917,2]
[367150036,1750673440427,-460.0,0.00021917,2]
[367150037,1750673440436,-460.0,0.00021917,2]
[367150039,1750673440446,-460.0,0.00021917,2]
[367150040,1750673440456,-1021.69,0.00021917,2]
[367150041,1750673440466,-460.0,0.00021917,2]
[367150042,1750673440476,-918.58,0.00021917,2]
[367150043,1750673440485,-460.0,0.00021917,2]
[367150044,1750673440495,-460.0,0.00021917,2]
[367150045,1750673440505,-460.0,0.00021917,2]
[367150046,1750673440515,-460.0,0.00021917,2]
[367150047,1750673440525,-460.0,0.00021917,2]
[367150048,1750673440534,-460.0,0.00021917,2]
[367150049,1750673440543,-2766.66,0.00021917,2]
[367150050,1750673440553,-1277.45,0.00021917,2]
[367150051,1750673440563,-460.0,0.00021917,2]
[367150052,1750673440573,-460.0,0.00021917,2]
[367150053,1750673440583,-460.0,0.00021917,2]
[367150054,1750673440593,-460.0,0.00021917,2]
[367150055,1750673440603,-460.0,0.00021917,2]
[367150056,1750673440613,-460.0,0.00021917,2]
[367150057,1750673440623,-460.0,0.00021917,2]
[367150058,1750673440633,-858.83,0.00021917,2]
[367150059,1750673440642,-460.0,0.00021917,2]
[367150060,1750673440651,-432.95503368,0.00021917,2]
[367150061,1750673440661,-999.89,0.00021917,2]
[367150062,1750673440670,-927.38,0.00021917,2]
[367150063,1750673440680,-460.0,0.00021917,2]
[367150064,1750673440690,-460.0,0.00021917,2]
[367150065,1750673440699,-460.0,0.00021917,2]
[367150066,1750673440709,-460.0,0.00021917,2]
[367150067,1750673440719,-460.0,0.00021917,2]
[367150068,1750673440728,-460.0,0.00021917,2]
[367150069,1750673440737,-460.0,0.00021917,2]
[367150070,1750673440747,-460.0,0.00021917,2]
[367150071,1750673440756,-460.0,0.00021917,2]
[367150072,1750673440766,-460.0,0.00021917,2]
[367150073,1750673440775,-460.0,0.00021917,2]
[367150074,1750673440785,-523.35617931,0.00021917,2]
[367150075,1750673440794,-460.0,0.00021917,2]
[367150076,1750673440803,-460.0,0.00021917,2]
[367150077,1750673440813,-460.0,0.00021917,2]
[367150078,1750673440822,-460.0,0.00021917,2]
[367150079,1750673440832,-382.69695999,0.00021917,2]
[367150080,1750673440843,-597.03,0.00021917,2]
[367150081,1750673440852,-980.79,0.00021917,2]
[367150082,1750673440862,-655.39,0.00021917,2]
[367150083,1750673440872,-460.0,0.00021917,2]
[367150084,1750673440882,-151.0,0.00021917,2]
[367150085,1750673440891,-460.0,0.00021917,2]
[367150086,1750673440901,-460.0,0.00021917,2]
[367150087,1750673440910,-550.22,0.00021917,2]
[367150088,1750673440920,-460.0,0.00021917,2]
[367150089,1750673440929,-460.0,0.00021917,2]
[367150090,1750673440940,-255.1352784,0.00021917,2]
[367150091,1750673440949,-460.0,0.00021917,2]
[367150092,1750673440959,-460.0,0.00021917,2]
[367150093,1750673440968,-460.0,0.00021917,2]
[367150094,1750673440978,-253.11345004,0.00021917,2]
[367150095,1750673440987,-460.0,0.00021917,2]
[367150096,1750673440996,-460.0,0.00021917,2]
[367150097,1750673441006,-460.0,0.00021917,2]
[367150098,1750673441017,-460.0,0.00021917,2]
[367150099,1750673441026,-624.08,0.00021917,2]
[367150100,1750673441035,-460.0,0.00021917,2]
[367150101,1750673441045,-500.0,0.00021917,2]
[367150102,1750673441055,-500.0,0.00021917,2]
[367150103,1750673441064,-500.0,0.00021917,2]
[367150104,1750673441074,-500.0,0.00021917,2]
[367150105,1750673441084,-460.0,0.00021917,2]
[367150106,1750673441097,-500.0,0.00021917,2]
[367150107,1750673441108,-500.0,0.00021917,2]
[367150108,1750673441117,-500.0,0.00021917,2]
[367150109,1750673441127,-495.28,0.00021917,2]
[367150110,1750673441138,-460.0,0.00021917,2]
[367150111,1750673441147,-461.03255266,0.00021917,2]
[367150112,1750673441156,-357.0430527,0.00021917,2]
[367150113,1750673441167,-460.0,0.00021917,2]
[367150114,1750673441179,-460.0,0.00021917,2]
[367150115,1750673441189,-520.63,0.00021917,2]
[367150116,1750673441199,-460.0,0.00021917,2]
[367150117,1750673441208,-460.0,0.00021917,2]
[367150118,1750673441218,-370.46710537,0.00021917,2]
[367150119,1750673441227,-460.0,0.00021917,2]
[367150120,1750673441237,-460.0,0.00021917,2]
[367150121,1750673441247,-1061.47,0.00021917,2]
[367150122,1750673441257,-460.0,0.00021917,2]
[367150123,1750673441267,-460.0,0.00021917,2]
[367150124,1750673441276,-460.0,0.00021917,2]
[367150125,1750673441285,-460.0,0.00021917,2]
[367150126,1750673441295,-460.0,0.00021917,2]
[367150127,1750673441304,-547.46089115,0.00021917,2]
[367150128,1750673441314,-460.0,0.00021917,2]